bitfinex/quotes_SOLUSD_20240729
["timestamp","ask_amount","ask_price","bid_price","bid_amount"]
[1722279480726,12.47,186.11,186.05,0.7675215]
[1722279480927,12.47,186.08,186.05,0.7675215]
[1722279481339,12.47,186.12,186.05,0.7675215]
[1722279481340,12.47,186.06,186.05,0.7675215]
[1722279483350,28.4481,186.06,186.05,0.7675215]
[1722279483555,78.8227,186.06,186.05,0.7675215]
[1722279484637,78.9927,186.06,186.05,0.7675215]
[1722279485558,73.4481,186.06,186.05,0.7675215]
[1722279486234,74.52137606,186.06,186.05,0.7675215]
[1722279486450,79.89597606,186.06,186.05,0.7675215]
[1722279488336,78.8227,186.06,186.05,0.7675215]
[1722279490952,78.9927,186.06,186.05,0.7675215]
[1722279493235,78.8227,186.06,186.05,0.7675215]
[1722279494065,78.9927,186.06,186.05,0.7675215]
[1722279494253,78.8227,186.06,186.05,0.7675215]
[1722279495552,98.8227,186.06,186.05,0.7675215]
[1722279498945,100.06597606,186.06,186.05,0.7675215]
[1722279502351,98.8227,186.06,186.05,0.7675215]
[1722279503476,82.8446,186.06,186.05,0.7675215]
[1722279503857,62.8446,186.06,186.05,0.7675215]
[1722279507166,46.07327606,186.06,186.05,0.7675215]
[1722279507370,12.47,186.09,186.05,0.7675215]
[1722279507569,1.07327606,186.08,186.05,0.7675215]
[1722279508282,17.8437,186.09,186.05,0.7675215]
[1722279508485,18.91697606,186.09,186.05,0.7675215]
[1722279509090,45.0,186.08,186.05,0.7675215]
[1722279510667,12.47,186.09,186.05,0.7675215]
[1722279511293,1.07327606,186.08,186.05,0.7675215]
[1722279513688,12.47,186.09,186.05,0.7675215]
[1722279513862,13.54327606,186.09,186.05,0.7675215]
[1722279514756,12.47,186.09,186.05,0.7675215]
[1722279518080,1.07327606,186.15,186.05,0.7675215]
[1722279518081,12.47,186.12,186.05,0.7675215]
[1722279518263,12.47,186.12,186.06,16.6442]
[1722279518776,1.07327606,186.11,186.06,16.6442]
[1722279519559,12.47,186.1,186.06,16.6442]
[1722279521370,12.47,186.12,186.06,16.6442]
[1722279523874,1.07327606,186.11,186.06,16.6442]
[1722279525873,12.47,186.12,186.06,16.6442]
[1722279526777,5.3726,186.13,186.07,6.1245]
[1722279526778,12.47,186.13,186.07,6.1245]
[1722279528682,1.07327606,186.12,186.07,6.1245]
[1722279528892,46.07327606,186.12,186.07,6.1245]
[1722279529468,12.47,186.11,186.07,6.1245]
[1722279529792,1.07327606,186.1,186.07,6.1245]
[1722279530479,1.07327606,186.1,186.06,16.6442]
[1722279531675,12.47,186.11,186.06,16.6442]
[1722279532809,1.07327606,186.1,186.06,16.6442]
[1722279533721,12.47,186.11,186.06,16.6442]
[1722279533873,45.0,186.1,186.06,16.6442]
[1722279535874,45.0,186.11,186.06,16.6442]
[1722279537197,12.47,186.12,186.06,16.6442]
[1722279538601,17.8429,186.12,186.06,16.6442]
[1722279540608,51.44647606,186.11,186.06,16.6442]
[1722279540784,12.47,186.12,186.06,16.6442]
[1722279542702,1.07327606,186.11,186.06,16.6442]
[1722279543010,12.47,186.12,186.06,16.6442]
[1722279545687,17.8428,186.12,186.06,16.6442]
[1722279546916,5.3728,186.12,186.06,16.6442]
[1722279547486,12.47,186.13,186.06,16.6442]
[1722279547806,17.842,186.15,186.07,1.07468064]
[1722279548010,17.842,186.15,186.08,12.47]
[1722279548209,1.07327606,186.2,186.08,12.47]
[1722279548405,12.47,186.16,186.08,12.47]
[1722279548912,1.07327606,186.15,186.07,12.47]
[1722279549288,46.07327606,186.15,186.07,12.47]
[1722279549506,12.47,186.14,186.07,12.47]
[1722279549707,17.8425,186.14,186.06,16.6442]
[1722279550513,1.07327606,186.13,186.06,16.6442]
[1722279551712,17.8425,186.14,186.06,16.6442]
[1722279552016,12.47,186.14,186.07,12.47]
[1722279552192,45.0,186.15,186.07,12.47]
[1722279552398,45.0,186.15,186.08,30.0]
[1722279552709,1.07327606,186.2,186.09,12.47]
[1722279552888,1.07327606,186.2,186.1,6.2888]
[1722279552889,5.3711,186.18,186.1,6.2888]
[1722279553095,57.47,186.17,186.1,6.2888]
[1722279553493,12.47,186.17,186.1,6.2888]
[1722279553717,1.07327606,186.16,186.1,6.2888]
[1722279553931,6.44497606,186.16,186.1,6.2888]
[1722279554430,5.372,186.15,186.1,6.2888]
[1722279554644,1.07327606,186.14,186.1,6.2888]
[1722279556335,12.47,186.15,186.1,6.2888]
[1722279556517,1.07327606,186.14,186.1,6.2888]
[1722279557806,12.47,186.15,186.1,6.2888]
[1722279558232,1.07327606,186.14,186.1,6.2888]
[1722279558804,45.0,186.14,186.1,6.2888]
[1722279559127,12.47,186.13,186.08,30.0]
[1722279559835,12.47,186.13,186.06,23.1695]
[1722279562818,12.47,186.13,186.06,35.6395]
[1722279563713,1.07327606,186.12,186.06,23.1695]
[1722279564118,12.47,186.13,186.06,23.1695]
[1722279564330,13.54327606,186.13,186.06,23.1695]
[1722279565234,12.47,186.13,186.06,23.1695]
[1722279566732,13.54327606,186.13,186.06,23.1695]
[1722279567521,12.47,186.13,186.06,23.1695]
[1722279568316,46.07327606,186.12,186.06,6.5253]
[1722279569113,46.07327606,186.12,186.05,0.7675215]
[1722279569535,12.47,186.11,186.05,0.7675215]
[1722279572132,1.07327606,186.1,186.05,0.7675215]
[1722279572337,12.47,186.11,186.05,0.7675215]
[1722279574520,1.07327606,186.1,186.05,0.7675215]
[1722279577142,12.47,186.11,186.05,0.7675215]
[1722279577446,45.0,186.12,186.05,0.7675215]
[1722279578747,1.07327606,186.11,186.05,0.7675215]
[1722279578941,12.47,186.12,186.05,0.7675215]
[1722279580054,1.07327606,186.11,186.05,0.7675215]
[1722279580236,12.47,186.12,186.05,0.7675215]
[1722279583851,1.07327606,186.11,186.05,0.7675215]
[1722279584054,1.07327606,186.1,186.05,0.7675215]
[1722279584527,12.47,186.12,186.05,0.7675215]
[1722279585646,46.07327606,186.11,186.05,0.7675215]
[1722279586844,12.47,186.1,186.05,0.7675215]
[1722279587048,1.07327606,186.09,186.05,0.7675215]
[1722279587427,46.07327606,186.09,186.05,0.7675215]
[1722279587627,12.47,186.08,186.05,0.7675215]
[1722279587832,1.07327606,186.07,186.05,0.7675215]
[1722279588642,57.47,186.09,186.05,0.7675215]
[1722279588822,58.54327606,186.09,186.05,0.7675215]
[1722279590733,57.47,186.09,186.05,0.7675215]
[1722279591647,45.0,186.09,186.05,0.7675215]
[1722279592032,13.54327606,186.09,186.05,0.7675215]
[1722279592832,45.0,186.08,186.05,0.7675215]
[1722279596351,46.07327606,186.08,186.05,0.7675215]
[1722279596554,58.54327606,186.08,186.05,0.7675215]
[1722279597034,57.47,186.08,186.05,0.7675215]
[1722279598751,1.07327606,186.07,186.05,0.7675215]
[1722279600356,57.47,186.08,186.05,0.7675215]
[1722279600749,12.47,186.06,186.05,0.7675215]
[1722279600971,62.8446,186.06,186.05,0.7675215]
[1722279601139,57.47,186.06,186.05,0.7675215]
[1722279601335,62.8446,186.06,186.05,0.7675215]
[1722279602569,62.8446,186.06,185.93,16.0492]
[1722279602570,99.8728,186.06,185.93,16.0492]
[1722279602884,95.06325456,186.05,185.93,16.0492]
[1722279603158,5.376,186.02,185.93,16.0492]
[1722279603335,57.47,186.01,185.93,28.5192]
[1722279603531,57.64,186.01,185.93,28.5192]
[1722279604254,45.17,186.01,185.93,28.5192]
[1722279604456,57.77575456,186.01,185.93,28.5192]
[1722279604638,57.47,186.01,185.93,28.5192]
[1722279604835,45.0,186.01,185.95,12.47]
[1722279605360,45.0,186.01,185.93,16.0492]
[1722279605361,12.47,185.98,185.93,16.0492]
[1722279606462,12.47,186.0,185.93,16.0492]
[1722279606837,12.47,185.99,185.93,16.0492]
[1722279607260,45.0,186.01,185.93,16.0492]
[1722279607456,12.47,185.99,185.93,16.0492]
[1722279607841,12.47,186.0,185.93,16.0492]
[1722279608164,45.0,186.02,185.93,28.5192]
[1722279608334,12.47,186.0,185.93,28.5192]
[1722279608754,12.47,186.0,185.93,16.0492]
[1722279609137,12.47,185.99,185.93,16.0492]
[1722279609336,45.0,186.03,185.93,16.0492]
[1722279609559,12.47,186.0,185.93,16.0492]
[1722279610554,0.30575456,185.99,185.93,16.0492]
[1722279611060,12.47,185.98,185.93,16.0492]
[1722279611357,12.77575456,185.98,185.93,16.0492]
[1722279611555,45.0,185.97,185.93,16.0492]
[1722279613057,0.30575456,185.96,185.91,5.38]
[1722279613760,12.77575456,185.96,185.91,5.38]
[1722279614149,12.77575456,185.96,185.89,5.38]
[1722279614150,12.47,185.94,185.89,5.38]
[1722279614463,45.0,185.93,185.89,5.38]
[1722279615043,45.0,185.93,185.87,5.38]
[1722279615853,45.0,185.93,185.86,13.2375215]
[1722279616646,12.47,185.94,185.86,13.2375215]
[1722279617344,16.6365,186.0,185.9,12.47]
[1722279617549,12.47,185.97,185.9,12.47]
[1722279618661,17.8473,185.97,185.86,0.7675215]
[1722279618848,45.0,185.96,185.88,12.47]
[1722279619043,17.8479,185.95,185.88,12.47]
[1722279619243,12.47,185.95,185.86,20.7675215]
[1722279619551,12.77575456,185.95,185.88,12.47]
[1722279620261,0.30575456,185.95,185.88,12.47]
[1722279620556,12.47,185.99,185.9,18.9108]
[1722279620760,65.0,185.98,185.9,18.9108]
[1722279621471,45.0,185.98,185.9,18.9108]
[1722279622460,12.47,185.99,185.92,12.47]
[1722279623044,12.47,186.01,185.92,12.47]
[1722279623574,12.47,185.99,185.9,6.4408]
[1722279623781,12.47,185.99,185.92,12.47]
[1722279624277,12.47,186.01,185.92,12.47]
[1722279624458,45.0,186.0,185.92,12.47]
[1722279624660,45.30575456,186.0,185.92,12.47]
[1722279625111,45.0,186.0,185.92,12.47]
[1722279625287,12.47,186.01,185.94,12.47]
[1722279625756,0.30575456,186.0,185.94,12.47]
[1722279626146,12.47,185.99,185.9,6.4408]
[1722279626345,45.0,185.98,185.92,12.47]
[1722279626572,45.0,185.98,185.9,6.4408]
[1722279626784,12.47,185.97,185.91,12.47]
[1722279627758,17.8472,185.97,185.9,6.4408]
[1722279627979,45.0,185.96,185.9,18.9108]
[1722279628358,17.8473,185.97,185.9,18.9108]
[1722279628672,50.3775,185.96,185.89,15.5625]
[1722279629086,50.3775,185.96,185.89,28.0325]
[1722279629481,45.0,185.96,185.89,28.0325]
[1722279629798,45.0,185.96,185.9,12.47]
[1722279630113,45.0,185.97,185.9,12.47]
[1722279632286,0.30575456,185.96,185.89,15.5625]
[1722279633173,57.47,185.97,185.89,15.5625]
[1722279633488,0.30575456,185.96,185.89,15.5625]
[1722279633903,45.0,185.97,185.91,12.47]
[1722279634079,0.30575456,185.99,185.91,12.47]
[1722279634279,12.77575456,185.99,185.91,12.47]
[1722279634469,45.0,185.98,185.91,12.47]
[1722279635406,0.30575456,185.98,185.91,12.47]
[1722279635699,0.30575456,185.97,185.91,12.47]
[1722279636703,12.77575456,185.99,185.91,18.7723]
[1722279637081,0.30575456,185.98,185.91,18.7723]
[1722279637887,12.77575456,185.99,185.91,18.7723]
[1722279638379,0.30575456,185.98,185.91,18.7723]
[1722279638878,45.0,185.98,185.91,18.7723]
[1722279639388,0.30575456,185.98,185.91,18.7723]
[1722279641084,12.47,185.99,185.91,18.7723]
[1722279642194,12.47,186.01,185.93,12.47]
[1722279642797,0.30575456,186.04,185.95,28.0431]
[1722279642992,0.30575456,186.04,185.97,12.47]
[1722279643503,12.47,186.05,185.97,12.47]
[1722279643807,12.47,186.03,185.95,28.0431]
[1722279645003,12.77575456,186.03,185.95,28.0431]
[1722279645503,12.47,186.03,185.95,28.0431]
[1722279645709,12.47,186.02,185.95,28.0431]
[1722279646079,0.30575456,186.01,185.95,28.0431]
[1722279646279,12.47,186.02,185.95,28.0431]
[1722279648602,12.47,186.02,185.95,15.5731]
[1722279648805,57.47,186.01,185.95,15.5731]
[1722279649011,62.846,186.01,185.95,15.5731]
[1722279649317,57.47,186.01,185.95,15.5731]
[1722279649493,12.47,185.99,185.91,6.3023]
[1722279649807,0.30575456,185.98,185.91,18.7723]
[1722279651282,45.30575456,185.98,185.91,6.3023]
[1722279653896,45.30575456,185.98,185.91,18.7723]
[1722279654096,45.0,185.98,185.91,18.7723]
[1722279655800,12.77575456,185.97,185.89,15.4709]
[1722279656130,17.8478,185.95,185.86,19.4216215]
[1722279656310,12.47,185.93,185.86,19.4216215]
[1722279656505,45.30575456,185.92,185.86,19.4216215]
[1722279656818,12.77575456,185.93,185.86,19.4216215]
[1722279657005,0.30575456,185.92,185.86,19.4216215]
[1722279658202,0.30575456,185.92,185.86,6.9516215]
[1722279658519,12.77575456,185.95,185.86,19.4216215]
[1722279658710,12.47,185.93,185.86,0.7675215]
[1722279658902,45.30575456,185.92,185.86,0.7675215]
[1722279660214,45.0,185.92,185.86,0.7675215]
[1722279661102,45.0,185.92,185.86,13.2375215]
[1722279661412,45.0,185.93,185.86,13.2375215]
[1722279662521,45.0,185.93,185.87,12.47]
[1722279662706,45.0,185.93,185.86,0.7675215]
[1722279663025,45.0,185.93,185.87,12.47]
[1722279664404,45.0,185.93,185.86,0.7675215]
[1722279664405,12.77575456,185.92,185.86,0.7675215]
[1722279664729,45.0,185.91,185.86,0.7675215]
[1722279664907,0.30575456,185.9,185.86,0.7675215]
[1722279665311,2.64590826,185.96,185.86,0.7675215]
[1722279665506,12.47,185.93,185.86,13.2375215]
[1722279665709,45.0,185.92,185.86,13.2375215]
[1722279665910,45.0,185.92,185.86,0.7675215]
[1722279667625,45.30575456,185.92,185.86,0.7675215]
[1722279671318,45.0,185.92,185.86,0.7675215]
[1722279671806,45.30575456,185.92,185.86,0.7675215]
[1722279672723,45.0,185.92,185.86,0.7675215]
[1722279672923,57.77575456,185.92,185.86,0.7675215]
[1722279674239,57.47,185.92,185.86,0.7675215]
[1722279674425,57.77575456,185.92,185.86,0.7675215]
[1722279675229,12.47,185.9,185.86,0.7675215]
[1722279675430,0.30575456,185.89,185.86,0.7675215]
[1722279675628,12.47,185.9,185.86,0.7675215]
[1722279676034,57.47,185.92,185.86,0.7675215]
[1722279676218,57.77575456,185.92,185.86,0.7675215]
[1722279676836,45.0,185.92,185.86,0.7675215]
[1722279677029,57.47,185.93,185.86,0.7675215]
[1722279677529,12.47,185.91,185.86,0.7675215]
[1722279677726,45.0,185.9,185.86,0.7675215]
[1722279679726,61.1784,185.9,185.86,0.7675215]
[1722279679928,12.47,185.87,185.86,0.7675215]
[1722279680140,12.77575456,185.87,185.86,0.7675215]
[1722279680338,5.3807,185.85,185.8,5.61455057]
[1722279680525,12.47,185.81,185.8,5.61455057]
[1722279680719,0.17,185.84,185.73,12.47]
[1722279681040,12.47,185.83,185.74,12.47]
[1722279681241,45.0,185.82,185.74,12.47]
[1722279681440,57.47,185.82,185.7,21.4243]
[1722279681739,57.47,185.82,185.75,12.47]
[1722279682043,57.47,185.82,185.74,12.47]
[1722279682222,57.77575456,185.82,185.74,12.47]
[1722279682423,63.15725456,185.82,185.74,12.47]
[1722279683650,12.47,185.79,185.71,32.47]
[1722279684032,12.47,185.77,185.71,20.0]
[1722279685438,12.47,185.78,185.71,20.0]
[1722279686518,12.47,185.77,185.7,33.8943]
[1722279686719,12.47,185.75,185.68,0.7675215]
[1722279686937,0.30575456,185.74,185.68,0.7675215]
[1722279687133,15.5846,185.81,185.68,0.7675215]
[1722279687134,12.47,185.76,185.68,33.2375215]
[1722279687338,0.30575456,185.78,185.68,33.2375215]
[1722279687339,12.47,185.75,185.68,0.7675215]
[1722279687535,12.47,185.75,185.68,13.2375215]
[1722279688325,0.30575456,185.77,185.68,0.7675215]
[1722279688530,12.47,185.75,185.68,13.2375215]
[1722279688940,12.47,185.74,185.68,0.7675215]
[1722279689334,12.47,185.75,185.68,14.31442518]
[1722279689520,12.47,185.75,185.68,13.2375215]
[1722279689721,15.89035456,185.81,185.69,1.07699774]
[1722279689920,12.47,185.75,185.68,0.7675215]
[1722279690120,12.47,185.75,185.68,13.2375215]
[1722279691222,12.47,185.76,185.69,13.54697837]
[1722279691427,12.47,185.76,185.68,13.2375215]
[1722279692032,12.47,185.76,185.69,12.47]
[1722279693350,12.47,185.75,185.68,13.2375215]
[1722279693649,12.47,185.72,185.68,0.7675215]
[1722279693822,12.47,185.71,185.68,0.7675215]
[1722279694028,12.47,185.72,185.68,0.7675215]
[1722279694352,12.47,185.71,185.68,0.7675215]
[1722279694952,12.47,185.74,185.68,0.7675215]
[1722279696059,12.47,185.72,185.68,0.7675215]
[1722279696539,12.47,185.73,185.68,0.7675215]
[1722279697224,12.47,185.74,185.68,0.7675215]
[1722279697430,12.47,185.76,185.69,1.07694224]
[1722279697730,16.09895456,185.8,185.7,12.47]
[1722279697731,5.3826,185.79,185.7,12.47]
[1722279697931,12.47,185.78,185.71,1.07687251]
[1722279698232,12.47,185.78,185.7,12.47]
[1722279698759,12.47,185.74,185.68,0.7675215]
[1722279699459,12.47,185.73,185.68,0.7675215]
[1722279700036,12.47,185.72,185.68,0.7675215]
[1722279700438,12.47,185.73,185.68,0.7675215]
[1722279701146,12.47,185.74,185.68,0.7675215]
[1722279701447,12.47,185.75,185.68,13.2375215]
[1722279701654,12.47,185.77,185.7,12.47]
[1722279701965,12.47,185.77,185.68,0.7675215]
[1722279701966,12.47,185.79,185.72,12.47]
[1722279702264,12.47,185.8,185.73,12.47]
[1722279702430,12.47,185.79,185.73,12.47]
[1722279702631,12.47,185.78,185.71,12.47]
[1722279702857,12.47,185.79,185.71,12.47]
[1722279703156,12.47,185.8,185.72,12.47]
[1722279703466,0.30575456,185.8,185.68,0.7675215]
[1722279703752,45.0,185.8,185.69,0.17]
[1722279703983,45.0,185.81,185.69,0.17]
[1722279704153,45.30575456,185.81,185.69,0.17]
[1722279704355,45.0,185.8,185.69,0.17]
[1722279704555,5.68785456,185.81,185.69,0.17]
[1722279704761,45.0,185.8,185.68,20.7675215]
[1722279705070,45.0,185.8,185.68,0.7675215]
[1722279705571,5.3834,185.76,185.68,0.7675215]
[1722279705747,45.0,185.75,185.68,0.7675215]
[1722279705952,45.0,185.75,185.7,30.0]
[1722279706151,45.0,185.76,185.7,30.0]
[1722279706672,5.3827,185.78,185.7,30.0]
[1722279706847,45.0,185.77,185.7,30.0]
[1722279707351,45.0,185.78,185.7,30.0]
[1722279707867,50.68855456,185.78,185.7,30.0]
[1722279708747,45.0,185.78,185.7,30.0]
[1722279708950,45.17,185.79,185.68,0.7675215]
[1722279709448,5.3836,185.75,185.68,0.7675215]
[1722279709858,45.0,185.74,185.68,0.7675215]
[1722279710258,5.68995456,185.73,185.68,0.7675215]
[1722279710467,45.0,185.72,185.68,0.7675215]
[1722279711168,0.30575456,185.71,185.68,0.7675215]
[1722279712170,5.3852,185.7,185.68,0.7675215]
[1722279712376,50.69105456,185.69,185.68,0.7675215]
[1722279713865,50.86105456,185.69,185.68,0.7675215]
[1722279716556,45.0,185.69,185.68,0.7675215]
[1722279720082,0.30575456,185.71,185.68,0.7675215]
[1722279720865,0.30575456,185.72,185.68,0.7675215]
[1722279721180,5.69025456,185.72,185.68,0.7675215]
[1722279721378,0.30575456,185.72,185.68,0.7675215]
[1722279721887,5.3827,185.78,185.68,0.7675215]
[1722279722083,0.30575456,185.78,185.68,0.7675215]
[1722279722257,5.68845456,185.78,185.68,0.7675215]
[1722279723154,5.383,185.77,185.68,0.7675215]
[1722279723352,0.30575456,185.76,185.68,0.7675215]
[1722279723789,5.3838,185.74,185.68,0.7675215]
[1722279723967,45.30575456,185.73,185.68,0.7675215]
[1722279724154,0.30575456,185.73,185.68,0.7675215]
[1722279724351,50.68995456,185.73,185.68,0.7675215]
[1722279725058,0.30575456,185.72,185.68,0.7675215]
[1722279725460,45.0,185.73,185.68,0.7675215]
[1722279725660,45.30575456,185.73,185.68,0.7675215]
[1722279725960,50.68995456,185.73,185.68,0.7675215]
[1722279727179,5.3845,185.72,185.68,0.7675215]
[1722279727391,50.69055456,185.71,185.68,0.7675215]
[1722279727689,0.30575456,185.7,185.68,0.7675215]
[1722279728661,45.30575456,185.71,185.68,0.7675215]
[1722279728869,45.0,185.7,185.68,0.7675215]
[1722279729173,45.0,185.72,185.68,0.7675215]
[1722279729760,45.0,185.73,185.68,0.7675215]
[1722279730166,45.30575456,185.73,185.68,0.7675215]
[1722279730674,5.3849,185.71,185.68,0.7675215]
[1722279730986,45.30575456,185.7,185.68,0.7675215]
[1722279731573,0.30575456,185.7,185.68,0.7675215]
[1722279731880,45.0,185.71,185.68,0.7675215]
[1722279732268,45.0,185.72,185.68,0.7675215]
[1722279733169,45.0,185.73,185.68,0.7675215]
[1722279733486,0.30575456,185.72,185.68,0.7675215]
[1722279733681,45.0,185.73,185.68,0.7675215]
[1722279734079,45.30575456,185.73,185.68,0.7675215]
[1722279734789,45.0,185.73,185.68,0.7675215]
[1722279735371,5.3849,185.71,185.68,0.7675215]
[1722279735680,45.0,185.7,185.68,0.7675215]
[1722279736971,45.0,185.71,185.68,0.7675215]
[1722279737383,5.3853,185.69,185.68,0.7675215]
[1722279737604,50.3853,185.69,185.68,0.7675215]
[1722279738896,50.69105456,185.69,185.68,0.7675215]
[1722279740299,70.86105456,185.69,185.68,0.7675215]
[1722279740878,64.32425456,185.69,185.68,0.7675215]
[1722279741076,84.32425456,185.69,185.68,0.7675215]
[1722279741977,84.32425456,185.69,185.55,22.4145]
[1722279741978,78.93895456,185.69,185.55,22.4145]
[1722279742185,25.09,185.67,185.55,22.4145]
[1722279742382,5.387,185.63,185.55,22.4145]
[1722279742775,45.0,185.62,185.55,22.4145]
[1722279743670,50.3872,185.63,185.55,22.4145]
[1722279743874,50.3872,185.63,185.55,21.4145]
[1722279743875,5.3874,185.62,185.55,21.4145]
[1722279744074,45.0,185.61,185.55,21.4145]
[1722279744899,50.3877,185.61,185.55,21.4145]
[1722279745077,5.69375456,185.6,185.55,21.4145]
[1722279745273,50.3882,185.59,185.5,15.5611]
[1722279745581,5.69425456,185.58,185.5,15.5611]
[1722279745881,0.30575456,185.63,185.5,15.5611]
[1722279746081,45.0,185.63,185.5,15.5611]
[1722279746299,15.3638,185.66,185.5,15.5611]
[1722279746593,5.3864,185.65,185.5,15.5611]
[1722279746800,5.3864,185.65,185.51,20.17]
[1722279746984,5.3864,185.65,185.52,6.4831]
[1722279747180,0.47575456,185.66,185.52,6.4831]
[1722279747181,5.5561,185.66,185.52,6.4831]
[1722279747391,25.09,185.67,185.53,16.0789]
[1722279747575,25.09,185.67,185.54,20.0]
[1722279747776,30.4759,185.67,185.54,20.0]
[1722279747995,5.3859,185.67,185.54,20.0]
[1722279748481,42.81992993,185.7,185.56,15.9089]
[1722279748482,5.3858,185.68,185.56,15.9089]
[1722279748876,5.3859,185.67,185.56,15.9089]
[1722279749588,5.3862,185.66,185.56,15.9089]
[1722279749785,45.0,185.65,185.56,15.9089]
[1722279750496,50.3862,185.66,185.56,15.9089]
[1722279750905,0.30575456,185.65,185.56,15.9089]
[1722279751583,5.3871,185.63,185.56,15.9089]
[1722279751978,0.30575456,185.62,185.56,15.9089]
[1722279752997,0.30575456,185.65,185.56,15.9089]
[1722279753203,45.17,185.66,185.56,16.98663453]
[1722279753385,45.0,185.66,185.56,15.9089]
[1722279753918,50.3862,185.66,185.56,15.9089]
[1722279754211,0.30575456,185.65,185.56,15.9089]
[1722279754385,5.69225456,185.65,185.56,15.9089]
[1722279755394,5.3868,185.64,185.56,15.9089]
[1722279755578,0.30575456,185.63,185.56,15.9089]
[1722279756585,5.69275456,185.63,185.56,15.9089]
[1722279756901,5.387,185.63,185.56,15.9089]
[1722279757787,5.387,185.63,185.49,21.9016215]
[1722279757788,45.0,185.62,185.49,21.9016215]
[1722279757988,5.69355456,185.61,185.49,21.9016215]
[1722279758188,50.3879,185.6,185.49,21.9016215]
[1722279758402,5.69395456,185.59,185.49,21.9016215]
[1722279758909,5.3888,185.57,185.49,21.9016215]
[1722279759689,45.0,185.58,185.49,21.9016215]
[1722279759909,5.3884,185.59,185.49,21.9016215]
[1722279760512,0.30575456,185.63,185.49,21.9016215]
[1722279760718,5.3876,185.61,185.49,21.9016215]
[1722279760901,5.3891,185.56,185.49,21.9016215]
[1722279761494,5.3887,185.58,185.49,21.9016215]
[1722279762108,45.0,185.63,185.49,21.9016215]
[1722279762417,5.3882,185.6,185.49,21.9016215]
[1722279762589,0.30575456,185.59,185.49,21.9016215]
[1722279762790,45.0,185.63,185.49,21.9016215]
[1722279763696,0.30575456,185.62,185.49,21.9016215]
[1722279764011,5.3891,185.56,185.49,21.9016215]
[1722279764690,5.3888,185.57,185.49,21.9016215]
[1722279765604,0.30575456,185.56,185.49,21.9016215]
[1722279766325,5.389,185.57,185.49,21.9016215]
[1722279767215,5.3891,185.56,185.49,21.9016215]
[1722279768310,50.69535456,185.55,185.49,21.9016215]
[1722279768610,5.3897,185.54,185.49,21.9016215]
[1722279768815,45.0,185.53,185.49,21.9016215]
[1722279769015,45.0,185.53,185.49,0.7675215]
[1722279769218,5.3904,185.52,185.49,0.7675215]
[1722279769597,50.39,185.53,185.49,0.7675215]
[1722279770312,0.30575456,185.56,185.5,5.3908]
[1722279770700,0.30575456,185.56,185.49,0.7675215]
[1722279771316,5.69485456,185.56,185.49,0.7675215]
[1722279772104,5.3891,185.56,185.49,0.7675215]
[1722279772312,0.30575456,185.55,185.49,0.7675215]
[1722279773417,0.30575456,185.55,185.49,0.2675215]
[1722279773623,5.69525456,185.55,185.49,0.2675215]
[1722279773925,5.3896,185.54,185.49,0.2675215]
[1722279774124,5.69535456,185.54,185.49,0.2675215]
[1722279774324,5.39,185.53,185.49,0.2675215]
[1722279774522,0.30575456,185.52,185.49,0.2675215]
[1722279775806,45.30575456,185.52,185.49,0.2675215]
[1722279776033,5.69625456,185.51,185.49,0.2675215]
[1722279776803,0.30575456,185.51,185.49,0.2675215]
[1722279777227,50.3904,185.52,185.49,0.2675215]
[1722279778324,50.3904,185.52,185.46,5.3918]
[1722279778325,5.3906,185.51,185.46,5.1593215]
[1722279778834,5.3906,185.51,185.44,22.7873]
[1722279779035,5.3909,185.5,185.44,22.7873]